[Event "DVM U10 2024"]
[Site "Duesseldorf"]
[Date "2024.12.27"]
[Round "1"]
[White "Mätz, Mark"]
[Black "Klages, Justus"]
[Result "0-1"]
[ECO "B40"]
[WhiteElo "767"]
[BlackElo "972"]
[Annotator "NA RC"]
[PlyCount "72"]
[EventDate "2024.12.23"]
[EventType "team-tourn"]
[EventRounds "7"]
[EventCountry "GER"]
[SourceTitle "playchess.com"]
[Source "ChessBase"]
[SourceQuality "1"]
[TimeControl "3300+5"]

1. e4 {[%emt 0:00:02]} c5 {[%emt 0:00:09]} 2. Nf3 {[%emt 0:00:06]} e6 {[%emt 0:00:17]} 3. Nc3 {[%emt 0:00:09]} a6 {[%emt 0:00:13]} 4. d3 {[%emt 0:00:13]} Nc6 {[%emt 0:00:31]} 5. g3 {[%emt 0:00:20]} Qc7 {[%emt 0:00:39]} 6. Bf4 {[%emt 0:00:25]} Qd8 {[%emt 0:02:41]} 7. Bg2 {[%emt 0:00:13]} b5 {[%emt 0:02:32]} 8. O-O {[%emt 0:00:38]} Bb7 {[%emt 0:00:37]} 9. e5 {[%emt 0:00:23]} Qc7 {[%emt 0:01:07]} 10. d4 {[%emt 0:00:27]} b4 {[%emt 0:01:58]} 11. Ne2 {[%emt 0:00:20]} Nge7 {[%emt 0:03:08]} 12. dxc5 {[%emt 0:00:25]} Nd5 {[%emt 0:00:28]} 13. Bg5 {[%emt 0:00:35]} Bxc5 {[%emt 0:00:37]} 14. c4 {[%emt 0:00:32]} Nde7 {[%emt 0:03:10]} 15. Bf4 {[%emt 0:00:49]} Ng6 {[%emt 0:01:08]} 16. Bg5 {[%emt 0:00:37]} Ngxe5 {[%emt 0:00:47]} 17. Nxe5 {[%emt 0:00:09]} Nxe5 {[%emt 0:00:33]} 18. Bf4 {[%emt 0:00:16]} Bxg2 {[%emt 0:01:08]} 19. Kxg2 {[%emt 0:00:19]} O-O {[%emt 0:00:29]} 20. Re1 {[%emt 0:00:18]} Qc6+ {[%emt 0:01:01]} 21. Kg1 {[%emt 0:00:16]} Nf3+ {[%emt 0:01:18]} 22. Kf1 {[%emt 0:00:10]} Nxe1 {[%emt 0:00:17]} 23. Qxe1 {[%emt 0:00:13]} Qh1+ {[%emt 0:00:21]} 24. Ng1 {[%emt 0:00:12]} Qxh2 {[%emt 0:01:04]} 25. Rd1 {[%emt 0:00:22]} Rfd8 {[%emt 0:02:49]} 26. Bc7 {[%emt 0:00:17]} Rf8 {[%emt 0:04:23]} 27. Rxd7 {[%emt 0:00:20]} Rac8 {[%emt 0:03:35]} 28. Nf3 {[%emt 0:00:16]} Qh3+ {[%emt 0:01:28]} 29. Kg1 {[%emt 0:00:13]} e5 {[%emt 0:02:27]} 30. Bxe5 {[%emt 0:01:03]} Qxd7 {[%emt 0:00:06]} 31. Qe4 {[%emt 0:00:42]} Qh3 {[%emt 0:01:51]} 32. Ng5 {[%emt 0:00:48]} Qh5 {[%emt 0:00:38]} 33. Qf4 {[%emt 0:00:20]} Rcd8 {[%emt 0:00:43]} 34. Nf3 {[%emt 0:00:29]} Rd1+ {[%emt 0:00:08]} 35. Ne1 {[%emt 0:00:18]} Rxe1+ {[%emt 0:00:16]} 36. Kg2 {[%emt 0:00:11]} Qh1# {[%emt 0:00:17]} 0-1